bitfinex/quotes_ETHUSD_20260312
["timestamp","ask_amount","ask_price","bid_price","bid_amount"]
[1773323389273,0.002,2066.6,2065.9,3.32401567]
[1773323389435,0.002,2066.6,2066.0,1.21006776]
[1773323390066,0.002,2066.6,2066.3,1.62701567]
[1773323391280,0.002,2066.6,2065.9,1.21008321]
[1773323391440,0.002,2066.6,2066.0,1.62701567]
[1773323392139,0.002,2066.6,2066.2,1.62701567]
[1773323392447,0.002,2066.6,2066.0,3.25403134]
[1773323392448,0.77928084,2067.1,2066.0,1.69255167]
[1773323392648,0.77928084,2067.1,2065.9,0.065536]
[1773323392859,0.77928084,2067.1,2066.0,1.62701567]
[1773323393565,1.98876318,2067.0,2066.1,1.21000919]
[1773323393953,0.77928084,2066.9,2066.1,1.21000919]
[1773323394741,0.77928084,2066.9,2065.8,7.28849485]
[1773323394742,0.77928084,2066.9,2065.9,2.837142]
[1773323395663,1.20959938,2066.8,2065.9,2.837142]
[1773323395865,4.83792936,2067.1,2065.9,2.837142]
[1773323395866,0.77928084,2067.2,2066.2,1.62701567]
[1773323396039,1.20930682,2067.3,2066.4,1.62701567]
[1773323396239,1.20901441,2067.8,2067.0,1.62701567]
[1773323396473,1.20901441,2067.8,2066.8,1.62701567]
[1773323396865,1.20901441,2067.8,2066.8,2.44776004]
[1773323397172,1.20901441,2067.8,2066.8,0.82074437]
[1773323397475,1.20901441,2067.8,2066.9,1.62701567]
[1773323397768,1.20896799,2067.9,2067.0,1.20948234]
[1773323397998,4.83545362,2068.1,2067.1,1.62701567]
[1773323398174,4.83545362,2068.1,2067.0,1.20948234]
[1773323398961,0.77928084,2067.8,2066.6,5.65958831]
[1773323399162,2.68414211,2067.8,2066.6,2.03046081]
[1773323399363,0.77928084,2068.0,2067.1,1.62701567]
[1773323399552,4.83545362,2068.1,2067.1,1.62701567]
[1773323399876,1.20883903,2068.2,2067.2,1.20936532]
[1773323400045,1.98811987,2068.2,2067.2,1.20936532]
[1773323400246,0.77928084,2068.1,2067.2,1.20936532]
[1773323400577,0.002,2067.2,2066.9,1.20954085]
[1773323400780,1.20883903,2068.2,2067.1,1.62701567]
[1773323400781,1.98811987,2068.2,2067.1,1.62701567]
[1773323400977,1.98811987,2068.2,2067.3,1.62701567]
[1773323401179,4.83421649,2068.6,2067.4,0.82074437]
[1773323401180,2.61328084,2068.6,2067.4,0.82074437]
[1773323401380,2.61328084,2068.6,2067.0,3.25403134]
[1773323401381,0.161437,2068.7,2068.1,1.62701567]
[1773323401679,0.161437,2068.7,2067.7,0.82074437]
[1773323401680,1.36992614,2068.7,2067.7,2.44776004]
[1773323401883,1.36992614,2068.7,2067.7,0.82074437]
[1773323402079,1.36992614,2068.7,2067.6,4.83647679]
[1773323402080,0.77928084,2068.5,2067.5,1.20914783]
[1773323402247,1.36992614,2068.7,2067.9,1.62701567]
[1773323402761,0.161437,2068.7,2068.1,1.62701567]
[1773323403077,0.161437,2068.7,2068.3,1.62701567]
[1773323403372,1.369978,2068.7,2068.0,0.82074437]
[1773323403574,1.36992817,2068.7,2068.0,0.82074437]
[1773323403876,1.36993059,2068.7,2068.1,1.20883903]
[1773323404176,1.36993059,2068.7,2067.8,1.62701567]
[1773323405071,2.14921143,2068.7,2067.7,1.20907288]
[1773323405285,0.161437,2068.7,2067.8,0.82074437]
[1773323405578,0.161437,2068.7,2068.1,1.62701567]
[1773323405783,0.161437,2068.7,2068.4,1.2086637]
[1773323406000,0.001,2069.1,2068.5,1.62701567]
[1773323406151,1.20802816,2069.5,2068.8,1.62701567]
[1773323406350,0.81530459,2069.7,2068.8,1.62701567]
[1773323406551,0.81530459,2069.7,2068.5,3.25403134]
[1773323406552,0.002,2069.9,2069.5,1.62701567]
[1773323406780,0.002,2070.2,2069.5,1.62701567]
[1773323406980,0.002,2070.4,2069.9,1.62701567]
[1773323407191,1.20950488,2070.4,2069.5,2.44776004]
[1773323407349,1.20950488,2070.4,2069.7,1.62701567]
[1773323407350,1.2095035,2070.4,2069.7,1.62701567]
[1773323407549,0.002,2070.4,2069.7,1.62701567]
[1773323407854,0.002,2070.4,2070.1,1.62701567]
[1773323408170,4.82880255,2071.0,2070.1,1.62701567]
[1773323408476,1.20702974,2071.2,2070.0,0.82074437]
[1773323408648,1.20702974,2071.2,2070.5,1.62701567]
[1773323408854,0.77928084,2071.5,2070.7,1.62701567]
[1773323408855,4.82781118,2071.4,2070.7,1.62701567]
[1773323409068,4.82699625,2071.7,2070.7,1.62701567]
[1773323409069,1.20679667,2071.6,2070.7,1.62701567]
[1773323409270,1.20644725,2072.2,2070.9,1.62701567]
[1773323409473,1.62701567,2071.7,2070.4,1.62701567]
[1773323409661,1.62701567,2071.7,2070.3,2.50474437]
[1773323409662,0.77928084,2071.7,2070.3,2.50474437]
[1773323410052,0.77928084,2071.5,2070.0,0.065536]
[1773323410256,2.52850574,2071.5,2070.1,1.20767021]
[1773323410554,0.77928084,2071.5,2070.1,1.20767021]
[1773323410751,0.77928084,2071.4,2069.8,1.7492249]
[1773323410956,0.77928084,2071.4,2069.8,1.20782258]
[1773323410957,0.77928084,2071.1,2069.8,1.20782258]
[1773323411179,0.77928084,2071.1,2069.6,3.71267722]
[1773323411878,0.77928084,2071.0,2069.7,1.20790452]
[1773323412058,0.77928084,2070.8,2069.6,4.83183748]
[1773323412259,1.20720459,2070.9,2069.8,1.7492249]
[1773323412568,5.60720539,2071.3,2069.8,2.56996927]
[1773323412569,1.20702974,2071.2,2069.8,2.56996927]
[1773323412768,0.77928084,2071.1,2069.8,2.56996927]
[1773323412964,1.20702974,2071.2,2070.1,1.7492249]
[1773323413163,4.82788586,2071.4,2070.2,4.922557]
[1773323413362,0.77928084,2071.9,2070.4,1.7492249]
[1773323413677,0.77928084,2071.9,2070.7,2.56996927]
[1773323413678,1.20668018,2071.8,2070.7,2.56996927]
[1773323414067,1.98596102,2071.8,2070.5,1.20742886]
[1773323414385,1.98596102,2071.8,2071.0,1.7492249]
[1773323414386,1.20668018,2071.8,2071.0,1.7492249]
[1773323414560,1.20668018,2071.8,2070.4,2.02819536]
[1773323414760,1.20668018,2071.8,2070.4,3.77742026]
[1773323415160,1.20668018,2071.8,2070.5,6.755324]
[1773323415480,0.77928084,2071.7,2070.4,1.20745099]
[1773323415782,0.002,2071.0,2070.4,1.20745099]
[1773323416083,0.002,2071.0,2070.2,4.83038533]
[1773323416486,0.002,2071.0,2070.2,1.20761279]
[1773323417785,0.002,2071.2,2070.4,2.56996927]
[1773323418084,1.20650547,2072.1,2070.8,5.629089]
[1773323418381,1.20650547,2072.1,2070.9,1.20720459]
[1773323418591,0.002,2071.5,2070.9,1.20720459]
[1773323418789,1.20650547,2072.1,2071.0,0.82074437]
[1773323418962,1.20650547,2072.1,2071.3,1.7492249]
[1773323419277,4.82493102,2072.6,2071.6,1.7492249]
[1773323419594,1.20626084,2072.6,2071.6,1.7492249]
[1773323420393,1.20626084,2072.6,2071.7,1.20673842]
[1773323420693,4.98629466,2072.7,2071.6,2.02493636]
[1773323420694,1.3676003,2072.7,2071.6,2.02493636]
[1773323420996,1.3676003,2072.7,2071.8,1.7492249]
[1773323421166,1.3676003,2072.7,2071.6,0.81818157]
[1773323421167,1.36762363,2072.7,2071.6,0.81818157]
[1773323421369,1.36762363,2072.7,2071.5,6.364861]
[1773323421556,1.36762363,2072.7,2071.7,1.7492249]
[1773323421761,1.36762363,2072.7,2072.0,1.7492249]
[1773323421959,0.161437,2072.7,2072.0,1.7492249]
[1773323422162,1.36760066,2072.7,2072.0,4.25440647]
[1773323422370,4.82276108,2073.6,2072.3,1.7492249]
[1773323422591,4.82299087,2073.5,2072.3,1.7492249]
[1773323422791,4.82299087,2073.5,2072.0,7.33120348]
[1773323422792,5.61160561,2073.5,2072.0,5.4609302]
[1773323422969,5.61160561,2073.5,2072.1,4.697147]
[1773323423169,5.61160561,2073.5,2072.0,5.4609302]
[1773323423365,5.61160561,2073.5,2072.0,3.7739302]
[1773323423366,0.78861474,2073.4,2072.0,3.7739302]
[1773323423599,0.78861474,2073.4,2072.0,2.95574863]
[1773323424102,0.78861474,2073.4,2071.9,5.943991]
[1773323424304,1.20609803,2072.8,2071.5,1.20685493]
[1773323424599,1.20609803,2072.8,2072.0,1.7492249]
[1773323424805,1.20609803,2072.8,2071.8,15.720375]
[1773323425099,1.20609803,2072.8,2071.7,3.4362249]
[1773323425306,1.20609803,2072.8,2071.7,1.7492249]
[1773323425897,1.20609803,2072.8,2071.6,1.687]
[1773323426098,1.20609803,2072.8,2071.4,6.64218064]
[1773323426099,0.78861474,2072.7,2071.4,1.20688266]
[1773323426299,0.78861474,2072.6,2071.4,2.95610756]
[1773323426602,1.20603984,2072.9,2071.7,1.7492249]
[1773323426900,0.78861474,2072.7,2071.1,2.63294247]
[1773323427205,0.78861474,2072.7,2071.1,5.45944767]
[1773323427206,0.78861474,2072.6,2071.1,5.45944767]
[1773323427703,0.78861474,2072.6,2071.4,1.7492249]
[1773323427901,0.78861474,2072.6,2071.3,0.81818157]
[1773323428103,0.78861474,2072.6,2071.2,1.7492249]
[1773323428676,1.20627261,2072.5,2071.5,1.7492249]
[1773323429203,3.27404848,2073.2,2071.6,20.355203]
[1773323429204,1.99465458,2073.0,2071.6,20.355203]
[1773323429390,1.99465458,2073.0,2071.8,1.7492249]
[1773323429391,1.20603984,2073.0,2071.8,1.7492249]
[1773323429704,0.78861474,2072.9,2071.4,1.7492249]
[1773323430281,0.78861474,2072.7,2071.3,1.20697146]
[1773323430800,1.7492249,2072.5,2071.2,1.20701664]
[1773323431006,1.7492249,2072.5,2070.9,1.20720459]
[1773323431007,0.78861474,2072.4,2070.9,1.20720459]
[1773323431384,0.79061474,2072.4,2071.2,1.7492249]
[1773323431703,0.002,2072.4,2071.7,1.61776175]
[1773323432708,0.002,2072.4,2071.8,1.20668018]
[1773323433017,0.002,2072.6,2071.9,1.61776175]
[1773323433606,1.206127,2072.8,2072.6,0.298]
[1773323433805,1.20592349,2073.1,2072.6,0.298]
[1773323434305,4.82278598,2073.5,2072.6,0.298]
[1773323434306,1.20557457,2073.7,2072.6,0.298]
[1773323434512,1.99418931,2073.7,2072.6,0.298]
[1773323434879,1.99418931,2073.7,2072.6,1.50418523]
[1773323435073,0.78861474,2073.5,2072.6,0.298]
[1773323435276,0.78861474,2073.5,2072.6,1.50421223]
[1773323435590,1.20557457,2073.7,2072.6,1.50421223]
[1773323436806,0.78861474,2073.4,2072.6,0.298]
[1773323436997,0.78861474,2073.4,2072.6,0.12588159]
[1773323438020,1.20569086,2073.5,2072.6,1.33209131]
[1773323438216,0.78861474,2073.4,2072.6,0.12588159]
[1773323439031,1.9944219,2073.3,2072.6,0.12588159]
[1773323439235,0.78861474,2073.1,2072.0,1.74631918]
[1773323439395,1.20580716,2073.3,2072.2,0.81818157]
[1773323440094,1.20580716,2073.3,2072.1,2.49565897]
[1773323440707,1.20580716,2073.3,2072.3,1.74631918]
[1773323440943,1.59507656,2074.7,2072.8,0.81818157]
[1773323441092,1.59507656,2074.7,2072.7,3.49263836]
[1773323441093,0.78861474,2074.5,2073.0,2.56450075]
[1773323441292,10.88201618,2074.4,2072.7,1.74631918]
[1773323441608,10.88201618,2074.4,2072.6,0.81818157]
[1773323441609,0.78861474,2074.1,2072.6,0.81818157]
[1773323441803,2.53493392,2074.1,2072.6,0.81818157]
[1773323442126,2.53493392,2073.8,2072.4,1.676]
[1773323442323,2.53493392,2073.8,2072.4,1.20633082]
[1773323442823,2.53493392,2073.8,2071.6,1.74631918]
[1773323442824,1.74631918,2073.2,2071.6,1.74631918]
[1773323443072,0.77541793,2072.8,2071.4,0.73674624]
[1773323443191,0.77541793,2072.8,2070.7,0.73674624]
[1773323443392,0.77541793,2072.2,2070.8,0.73674624]
[1773323443619,0.77541793,2072.2,2070.8,2.48478201]
[1773323443823,0.77541793,2072.2,2070.8,0.73674624]
[1773323443995,0.77541793,2072.2,2070.4,0.001]
[1773323443996,0.77541793,2071.9,2070.4,1.20844603]
[1773323444592,0.77541793,2071.9,2070.6,1.74803577]
[1773323445609,1.20668018,2071.8,2070.7,1.20732119]
[1773323446126,1.20666317,2071.9,2070.9,1.74803577]
[1773323446839,1.20666317,2071.9,2071.6,0.001]
[1773323447036,1.20666317,2071.9,2070.7,1.20732119]
[1773323447535,1.20666317,2071.9,2071.4,0.001]
[1773323447914,5.60190569,2072.1,2071.4,0.001]
[1773323448938,4.82648776,2072.1,2071.4,0.001]
[1773323449104,0.77541793,2072.0,2071.1,0.001]
[1773323449303,4.82648776,2072.1,2071.1,0.001]
[1773323450136,5.60190569,2072.1,2071.1,0.001]
[1773323450339,0.73072049,2072.0,2071.1,0.001]
[1773323450634,0.73072049,2071.9,2071.1,0.001]
[1773323451506,1.798,2072.1,2071.1,0.001]
[1773323451810,2.52872049,2072.1,2071.1,0.001]
[1773323452010,0.73072049,2071.9,2071.1,0.001]
[1773323452735,1.20627261,2072.5,2071.2,2.53427111]
[1773323452939,0.73072049,2072.4,2071.1,0.001]
[1773323453109,0.73072049,2072.3,2071.1,0.001]
[1773323453739,2.34971445,2072.1,2071.1,0.001]
[1773323454040,1.61899396,2071.8,2071.1,0.001]
[1773323454242,2.34971445,2071.6,2070.4,1.99469563]
[1773323454411,2.34971445,2071.6,2070.4,1.20846029]
[1773323454743,1.61899396,2071.4,2070.4,0.001]
[1773323454947,0.73072049,2071.3,2070.4,0.001]
[1773323455238,0.73072049,2070.9,2070.1,0.001]
[1773323455439,1.61899396,2070.7,2070.1,0.001]
[1773323455628,0.73072049,2070.6,2070.1,0.001]
[1773323455808,2.48189797,2070.4,2069.9,0.001]
[1773323456008,2.48189797,2070.4,2068.8,0.78623534]
[1773323456009,1.20755446,2070.3,2068.9,1.20837159]
[1773323456206,1.20755446,2070.3,2069.1,1.75117748]
[1773323456410,1.799,2070.2,2069.1,1.75117748]
[1773323456610,1.20755446,2070.3,2069.0,0.78623534]
[1773323457437,3.00755446,2070.3,2069.0,0.78623534]
[1773323457838,3.00755446,2070.3,2068.9,1.20837159]
[1773323457839,0.73072049,2070.1,2068.9,1.20837159]
[1773323458140,1.20772946,2070.0,2068.8,1.81671348]
[1773323458320,1.20755446,2070.3,2069.1,1.75117748]
[1773323458842,1.20755446,2070.3,2069.0,3.298156]
[1773323459149,1.75117748,2070.2,2068.9,0.78623534]
[1773323460311,1.20767112,2070.1,2069.0,1.20831319]
[1773323460510,1.20755689,2070.3,2069.0,1.99454853]
[1773323460713,1.20755689,2070.3,2069.1,2.53741282]
[1773323460940,1.20755689,2070.3,2069.0,1.20831319]
[1773323460941,1.93805846,2070.7,2069.4,2.53741282]
[1773323461147,1.93805846,2070.7,2069.0,1.20831319]
[1773323461148,0.73072049,2070.6,2069.2,3.024223]
[1773323461442,1.75117748,2070.9,2069.4,0.78623534]
[1773323461646,1.75117748,2070.9,2069.3,11.037504]
[1773323461647,2.68819461,2071.8,2069.8,0.85177134]
[1773323461807,0.73072049,2071.5,2069.9,0.78623534]
[1773323462014,0.73072049,2071.5,2070.1,0.78623534]
[1773323462318,1.20685493,2071.5,2070.2,1.99384813]
[1773323462522,6.62397121,2071.7,2070.2,1.99384813]
[1773323462523,1.2087924,2071.7,2070.4,0.78623534]
[1773323462920,0.002,2071.7,2070.4,0.78623534]
[1773323463418,0.002,2071.7,2070.3,1.75117748]
[1773323463419,1.20874862,2071.7,2070.6,2.53741282]
[1773323463748,1.20874607,2071.7,2070.7,0.78623534]
[1773323464119,1.20874607,2071.7,2070.5,0.065536]
[1773323464315,0.73072049,2071.6,2070.3,1.20755446]
[1773323464621,2.48189797,2071.2,2070.1,1.20762459]
[1773323465418,1.796,2071.3,2069.6,4.859782]
[1773323465419,0.73072049,2070.8,2069.6,4.859782]
[1773323465870,1.796,2071.3,2069.7,2.53741282]
[1773323465871,2.48189797,2071.2,2069.7,2.53741282]
[1773323466019,0.73072049,2071.2,2069.9,3.146179]
[1773323466212,0.73072049,2071.2,2070.0,1.20772946]
[1773323466213,1.20702974,2071.2,2070.0,1.20772946]
[1773323466437,3.00299671,2071.3,2070.1,2.180079]
[1773323466650,3.00299671,2071.3,2070.0,1.20772946]
[1773323466858,1.20699671,2071.3,2070.0,1.20772946]
[1773323467014,1.20699671,2071.3,2070.0,1.9939648]
[1773323467522,0.73072049,2071.1,2070.0,1.20772946]
[1773323467717,2.48189797,2070.9,2069.7,1.20790452]
[1773323467924,0.73072049,2070.8,2069.6,1.20792347]
[1773323468120,2.48189797,2070.6,2069.3,1.20813801]
[1773323468323,4.82765806,2071.4,2069.5,2.53741282]
[1773323468324,1.20726289,2070.9,2069.5,2.53741282]
[1773323468626,1.20726289,2070.9,2069.5,0.78623534]
[1773323468627,1.93798338,2070.9,2069.5,0.78623534]
[1773323469044,1.93798338,2070.9,2069.5,1.75117748]
[1773323469358,1.93798338,2070.9,2069.6,0.78623534]
[1773323469566,4.82881838,2071.3,2069.3,1.20813801]
[1773323469567,1.93773814,2071.3,2069.9,0.78623534]
[1773323470131,0.73072049,2071.2,2069.7,3.428029]
[1773323470466,1.20708802,2071.1,2069.8,1.20784616]
[1773323470960,1.20708802,2071.1,2069.9,0.78623534]
[1773323471364,1.93780851,2071.1,2069.8,1.20784616]
[1773323471938,3.68898599,2071.1,2069.8,1.20784616]
[1773323472540,1.93792508,2070.9,2069.6,4.83138467]
[1773323473543,0.73072049,2070.8,2069.6,4.83138467]
[1773323474271,0.73072049,2070.8,2069.7,2.563375]
[1773323474768,1.93804168,2070.7,2069.8,1.20784616]
[1773323475069,1.93804168,2070.7,2069.1,0.78623534]
[1773323475070,0.73072049,2070.4,2069.1,0.78623534]
[1773323475274,0.73072049,2070.4,2069.2,4.83267728]
[1773323475437,1.798,2070.3,2069.2,4.83267728]
[1773323475773,2.52872049,2070.3,2069.2,4.83267728]
[1773323475941,0.73072049,2070.3,2069.3,0.04832552]
[1773323476143,1.798,2070.5,2069.3,0.04832552]
[1773323476343,0.73072049,2070.4,2069.2,4.83267728]
[1773323476557,0.73072049,2070.2,2069.0,4.83301662]
[1773323476960,0.73072049,2070.1,2069.0,4.83301662]
[1773323477164,0.73072049,2069.8,2068.9,1.20935202]
[1773323477362,0.73072049,2069.8,2068.9,0.001]
[1773323477562,0.73072049,2069.8,2068.9,1.20937029]
[1773323477767,1.20755446,2070.3,2068.9,1.20937029]
[1773323477768,2.52872049,2070.2,2069.5,0.001]
[1773323477963,0.73072049,2070.1,2069.5,0.001]
[1773323478141,0.73072049,2070.1,2068.9,1.20937029]
[1773323478649,1.93844995,2070.0,2068.9,0.001]
[1773323478981,2.48189797,2069.9,2068.9,0.001]
[1773323479158,0.73072049,2069.9,2068.9,0.001]
[1773323479360,1.93825405,2070.4,2069.1,0.78623534]
[1773323479560,1.93825405,2070.4,2069.1,2.53741282]
[1773323479561,1.93823963,2070.4,2069.1,2.53741282]
[1773323479767,3.00649304,2070.5,2069.2,0.78623534]
[1773323480157,1.20742219,2070.6,2069.4,0.73461604]
[1773323480781,4.82940145,2070.7,2069.5,1.20802126]
[1773323480992,4.82940145,2070.7,2069.6,0.04831851]
[1773323481202,1.20708802,2071.1,2069.7,2.48579352]
[1773323481382,1.20708802,2071.1,2069.8,0.78292988]
[1773323481849,1.94615526,2071.1,2069.8,0.73461604]
[1773323482752,1.94615526,2071.1,2069.9,1.20778781]
[1773323483365,6.62990747,2071.3,2070.4,0.73461604]
[1773323483366,0.002,2071.3,2070.4,0.73461604]
[1773323484295,1.20877361,2071.7,2070.2,2.49936324]
[1773323484296,0.002,2071.7,2070.8,2.48579352]
[1773323484499,0.002,2071.7,2070.6,0.065536]
[1773323484785,0.002,2071.7,2070.8,1.20726289]
[1773323485163,0.002,2071.9,2070.8,1.20726289]
[1773323485164,0.002,2071.9,2071.1,1.75117748]
[1773323485366,0.002,2071.9,2071.2,5.831479]
[1773323485592,0.002,2071.9,2070.9,0.065536]
[1773323485892,0.002,2071.9,2070.8,1.20726289]
[1773323486067,1.75317748,2071.9,2070.8,1.20726289]
[1773323486270,0.002,2071.9,2070.8,1.20726289]
[1773323486859,0.002,2071.9,2071.0,5.63663]
[1773323487199,0.002,2071.9,2070.7,4.82905157]
[1773323487698,0.002,2071.9,2070.9,0.73461604]
[1773323488376,0.002,2071.9,2070.7,4.82905157]
[1773323488577,0.002,2071.9,2070.8,2.3051]
[1773323488778,0.002,2071.9,2070.9,1.20720459]
[1773323490194,0.002,2071.9,2070.6,4.89435438]
[1773323490195,0.73906724,2071.7,2070.6,1.2073369]
[1773323490494,0.002,2071.9,2070.7,0.73461604]
[1773323490872,1.20862194,2071.9,2070.8,1.20726289]
[1773323491078,0.73906724,2071.7,2070.8,1.20726289]
[1773323491275,0.73906724,2071.4,2070.3,1.20751166]
[1773323491676,0.73906724,2071.4,2070.2,1.657]
[1773323491864,2.49024472,2071.2,2070.0,1.20772946]
[1773323492064,0.73906724,2071.1,2070.0,1.20772946]
[1773323492778,2.49024472,2071.5,2070.1,0.73461604]
[1773323492982,1.94598043,2071.4,2070.4,1.20749613]
[1773323493298,1.94598043,2071.4,2070.1,7.33002906]
[1773323493299,0.73906724,2071.3,2070.5,0.04829751]
[1773323493503,0.73906724,2071.3,2070.3,0.04830217]
[1773323493799,0.73906724,2071.3,2070.2,1.20757187]
[1773323494400,0.73906724,2071.1,2070.3,0.04830217]
[1773323494696,0.73906724,2070.8,2069.5,1.20802126]
[1773323495074,1.94638843,2070.7,2069.5,1.20802126]
[1773323496605,1.94638843,2070.7,2069.6,0.04831851]
[1773323496811,0.73906724,2070.6,2069.5,1.20802126]
[1773323497150,0.73906724,2071.0,2069.5,0.73461604]
[1773323497285,0.73906724,2071.0,2069.6,0.73461604]
[1773323497286,5.5677842,2071.0,2069.6,0.73461604]
[1773323497471,5.5677842,2071.0,2069.7,4.035569]
[1773323497677,0.73906724,2070.8,2069.6,0.73461604]
[1773323497892,0.73906724,2070.8,2069.5,0.065536]
[1773323498088,1.75117748,2070.9,2069.6,7.70791904]
[1773323498293,4.82871696,2071.0,2069.7,0.73461604]
[1773323498492,0.73906724,2070.9,2069.7,0.73461604]
[1773323498889,0.73906724,2070.9,2069.8,0.04831384]
[1773323499082,1.20726289,2070.8,2069.9,1.20778781]
[1773323499311,0.73906724,2071.3,2070.0,0.04830917]
[1773323499475,0.73906724,2071.3,2070.1,0.04830684]
[1773323499678,2.49024472,2070.9,2069.9,1.20778781]
[1773323499982,0.73906724,2070.8,2069.6,1.20796289]
[1773323500184,1.75117748,2070.9,2069.2,1.20913801]
[1773323500185,0.73906724,2070.5,2069.2,1.20913801]
[1773323500376,0.73906724,2070.2,2069.2,0.001]
[1773323500576,1.75117748,2070.0,2069.2,0.001]
[1773323500774,0.73906724,2069.9,2069.2,0.001]
[1773323501313,1.2077626,2070.0,2069.2,0.001]
[1773323503995,4.83091787,2070.2,2069.2,0.001]
[1773323504504,0.73088023,2069.9,2069.2,0.001]
[1773323505085,1.20784616,2069.8,2069.2,0.001]
[1773323505403,1.93872639,2069.8,2069.2,0.001]
[1773323505577,1.62243249,2069.7,2069.2,0.001]
[1773323505782,2.35331272,2069.7,2069.0,0.001]
[1773323506181,1.62243249,2069.5,2069.0,0.001]
[1773323506589,0.73088023,2069.6,2069.0,0.001]
[1773323506999,2.35331272,2069.6,2069.4,0.001]
[1773323507311,2.35331272,2069.6,2069.0,0.001]
[1773323507515,2.83031469,2069.8,2069.1,0.001]
[1773323507680,1.2078822,2069.8,2069.1,0.001]
[1773323507881,1.62243249,2069.5,2069.1,0.001]
[1773323508113,1.62243249,2069.3,2068.9,0.001]
[1773323508289,1.62243249,2069.1,2068.9,0.001]
[1773323508610,1.62243249,2069.7,2068.9,0.001]
[1773323508908,1.62243249,2069.5,2068.9,0.001]
[1773323509210,2.35331272,2069.5,2068.9,0.001]
[1773323509714,3.56134697,2069.5,2068.9,0.001]
[1773323510085,3.56133783,2069.5,2068.9,0.001]
[1773323510489,0.71148891,2070.2,2068.9,0.001]
[1773323510684,4.1259214,2070.1,2068.9,0.001]
[1773323510883,4.1259214,2070.1,2068.9,0.6931012]
[1773323511122,4.1259214,2070.1,2069.0,0.04833252]
[1773323511490,1.62243249,2069.9,2068.9,0.6931012]
[1773323511786,2.8302231,2069.9,2069.0,1.20831319]
[1773323511992,1.62243249,2069.9,2069.1,0.04833019]
[1773323512289,5.33360634,2070.1,2069.0,1.20831319]
[1773323512488,1.62243249,2069.9,2069.0,1.20831319]
[1773323513902,1.20784616,2069.8,2069.0,1.20831319]
[1773323514086,2.83026788,2069.9,2069.0,1.20831319]
[1773323514822,1.62243249,2069.8,2069.0,1.20831319]
[1773323515121,1.62243249,2069.8,2069.1,0.04833019]
[1773323515508,2.83021597,2070.0,2069.1,0.04833019]
[1773323515723,1.20778348,2070.0,2069.1,0.04833019]
[1773323516192,2.83021597,2070.0,2069.2,1.2081964]
[1773323516394,3.54170488,2070.0,2069.3,0.04832552]
[1773323517119,3.54170488,2070.0,2069.2,1.2081964]
[1773323517421,1.62243249,2069.8,2069.2,1.2081964]
[1773323517801,2.3339214,2069.8,2069.0,1.20828828]
[1773323517996,1.62243249,2069.6,2069.0,1.20828828]
[1773323518190,1.62243249,2069.4,2068.9,0.001]
[1773323518395,1.20802126,2069.5,2068.9,0.001]
[1773323520222,1.62243249,2069.4,2068.9,0.001]
[1773323520516,1.62243249,2069.4,2068.7,0.001]
[1773323520517,0.71148891,2069.3,2068.7,0.001]
[1773323520920,0.71148891,2069.3,2069.1,0.001]
[1773323521120,2.3339214,2069.2,2068.7,0.001]
[1773323521504,0.71148891,2069.2,2068.9,0.001]
[1773323521899,0.71148891,2069.2,2068.7,0.001]
[1773323521900,0.71148891,2069.0,2068.7,0.001]
[1773323522229,0.71148891,2068.7,2068.4,0.001]
[1773323522394,2.50048891,2068.7,2068.4,0.001]
[1773323523128,2.50048891,2068.7,2067.6,6.45849013]
[1773323523129,0.71148891,2068.4,2067.5,1.20918984]
[1773323523324,1.62243249,2068.2,2067.5,1.20918984]
[1773323523519,0.71148891,2068.4,2067.5,1.20918984]
[1773323523892,0.71148891,2068.1,2067.4,1.21023667]
[1773323524225,1.20895594,2067.9,2067.4,0.001]
[1773323524610,1.92044485,2067.9,2067.4,0.001]
[1773323524813,1.20880191,2068.2,2067.4,0.001]
[1773323525117,3.54272331,2068.2,2067.4,0.001]
[1773323526305,0.71148891,2068.6,2067.4,0.001]
[1773323526626,0.71148891,2068.5,2067.4,0.001]
[1773323526831,1.789,2068.7,2067.5,2.31453369]
[1773323527002,2.99751395,2068.7,2067.6,0.6921012]
[1773323527207,2.3339214,2068.6,2067.4,0.001]
[1773323527408,1.62243249,2068.4,2067.4,0.001]
[1773323527605,2.99747006,2068.8,2067.6,4.2924682]
[1773323527821,2.99747006,2068.8,2067.6,0.6921012]
[1773323528112,2.99747006,2068.8,2067.4,0.001]
[1773323528113,0.71148891,2068.7,2067.4,0.001]
[1773323528317,1.20854684,2068.6,2067.4,0.001]
[1773323528509,1.92002099,2068.7,2067.5,10.471626]
[1773323528710,1.92002099,2068.7,2067.5,0.6921012]
[1773323529028,0.71148891,2068.6,2067.4,0.001]
[1773323529232,1.75378945,2068.5,2067.4,0.001]
[1773323529428,0.71148891,2068.4,2067.4,0.001]
[1773323529633,1.20853208,2068.7,2067.4,0.001]
[1773323529803,0.71148891,2068.6,2067.4,0.001]
[1773323530004,0.71148891,2068.4,2067.4,0.04936993]
[1773323530411,1.20872213,2068.3,2067.4,0.001]
[1773323530609,0.71148891,2068.1,2067.4,0.001]
[1773323531930,1.789,2068.2,2067.4,0.001]
[1773323532106,2.50048891,2068.2,2067.4,0.001]
[1773323532439,1.789,2068.2,2067.4,0.001]
[1773323532728,2.9977972,2068.2,2067.4,0.001]
[1773323532901,3.70928611,2068.2,2067.4,0.001]
[1773323533194,0.71148891,2068.1,2067.4,0.001]
[1773323534400,1.20889748,2068.0,2067.4,0.001]
[1773323535236,1.20887807,2068.1,2067.4,0.001]
[1773323536339,1.92036698,2068.1,2067.4,0.001]
[1773323536516,1.20895594,2067.9,2067.4,0.001]
[1773323536919,1.92044485,2067.9,2067.4,0.001]
[1773323537118,0.71148891,2067.8,2067.4,0.001]
[1773323537722,6.58961323,2068.0,2067.4,0.001]
[1773323537723,1.789,2068.4,2067.4,0.001]
[1773323538050,1.789,2068.4,2067.4,0.6931012]
[1773323538258,1.789,2068.4,2067.5,0.04836759]
[1773323538545,1.789,2068.4,2067.6,0.6921012]
[1773323538716,0.002,2068.9,2067.9,0.6921012]
[1773323539041,1.21038084,2068.9,2067.9,0.6921012]
[1773323539741,1.21038084,2068.9,2067.7,1.94953699]
[1773323539925,1.21038084,2068.9,2067.7,1.90117408]
[1773323540316,1.8400138,2068.9,2067.7,1.90117408]
[1773323540521,0.62963296,2068.8,2067.7,1.20907288]
[1773323540719,1.8381798,2068.6,2067.4,4.83798284]
[1773323541024,2.99143,2068.8,2067.6,0.62979787]
[1773323541426,0.62963296,2068.7,2067.4,4.83798284]
[1773323542842,0.62963296,2068.5,2067.4,0.001]
[1773323543725,6.61782885,2068.8,2067.6,0.62979787]